Cogmind - Beta 13 @@@ ROGUE MODE // 2024.08.03 @ 19:36:55 Player: Smallest Ween Result: Destroyed by Y-45 Defender with Beam Rifle Performance ------------- Evolutions (1) 500 Regions Visited (2) 400 Robots Destroyed (29) 145 Value Destroyed (594) 594 Prototype IDs (0) 0 Alien Tech Used (0) 0 Bonus (0) 0 TOTAL SCORE: 1639 Bonus ------- None Cogmind --------- Core Integrity 0/400 Matter 376/400 Energy 84/100 System Corruption 0% Temperature Warm (148) Movement Core (400) Ox7 Location -9/Materials Parts ------- > --- POWER (1) -------- (None) > --- PROPULSION (3) --- (None) > --- UTILITY (3) ------ Large Storage Unit Medium Matter Pod > --- WEAPON (2) ------- (None) > --- INVENTORY (15) --- (None) Peak State ------------ > --- POWER ------------ Improved Ion Engine > --- PROPULSION ------- Aluminum Leg Aluminum Leg Aluminum Leg > --- UTILITY ---------- Large Storage Unit Medium Matter Pod Light Armor Plating > --- WEAPON ----------- Particle Gun Light Assault Rifle > --- INVENTORY -------- Light Ion Engine Light Armor Plating Small Laser [Rating: 11] Favorites ----------- Power Light Ion Engine Engine Light Ion Engine Propulsion Wheel Treads Light Treads Leg Aluminum Leg Wheel Wheel Utility Medium Matter Pod Device Heat Sink Storage Medium Matter Pod Protection Light Armor Plating Weapon Small Laser Energy Gun Small Laser Ballistic Gun Light Assault Rifle Launcher Grenade Launcher Build | -11 -10 -9 ------- Run | Yrd Mat Mat Slots Evolved 2 | . . 2 Power . | . . . Propulsion 1 | . . 1 Utility 1 | . . 1 Weapon . | . . . Parts Attached 29 | 9 5 15 Power 4 | 1 . 3 Engine 4 | 1 . 3 Core . | . . . Reactor . | . . . Propulsion 6 | 2 1 3 Treads 1 | . 1 . Leg 3 | . . 3 Wheel 2 | 2 . . Hover . | . . . Flight . | . . . Utility 9 | 2 3 4 Device 1 | 1 . . Storage 3 | 1 1 1 Processor . | . . . Hackware . | . . . Protection 5 | . 2 3 Artifact . | . . . Weapon 10 | 4 1 5 Energy Gun 7 | 3 . 4 Energy Cannon . | . . . Ballistic Gun 2 | 1 . 1 Ballistic Cannon . | . . . Launcher 1 | . 1 . Special Weapon . | . . . Impact Weapon . | . . . Slashing Weapon . | . . . Piercing Weapon . | . . . Special Melee Weapon . | . . . Unidentified Prototypes . | . . . Parts Lost 17 | . 1 16 Power 3 | . . 3 Propulsion 5 | . 1 4 Utility 3 | . . 3 Weapon 6 | . . 6 Highest Loss Streak 11 | . 1 11 To Critical Strikes . | . . . Average Slot Usage (%) 88 | . 98 75 Engine 11 | . 14 8 Treads 5 | . 7 3 Leg 4 | . . 11 Wheel 11 | . 20 . Device 2 | . 4 . Storage 17 | . 14 21 Protection 9 | . 8 10 Energy Gun 14 | . 15 12 Ballistic Gun 2 | . . 6 Launcher 8 | . 12 2 Naked Turns . | . . . Heaviest Build 36 | 7 12 36 Greatest Support 30 | 20 20 30 Greatest Overweight (x) 9 | . 1 9 Average Overweight (x) . | . . 1 Largest Inventory Capacity 15 | 5 5 15 Average Capacity 8 | 5 5 14 Most Carried 5 | 5 5 5 Average Carried 2 | 2 3 2 Final Capacity 15 | 5 5 15 Final Carried 4 | 1 4 . Class Distribution -------------------- 90% | Mutant 9% | Scavenger-Mutant Dominant Class ---------------- Mutant | -10/Materials Mutant | -9/Materials Resources | -11 -10 -9 ----------- Run | Yrd Mat Mat Matter Collected 567 | 265 197 105 Remotely . | . . . Salvage Created 667 | 50 321 296 Parts 53 | 6 23 24 Haulers Intercepted 1 | . 1 . Recyclers Shooed 2 | . 1 1 Parts Field Recycled . | . . . Retrieved Matter . | . . . Parts Self-Destructed . | . . . Prevented . | . . . Kills | -11 -10 -9 ------- Run | Yrd Mat Mat Combat Hostiles Destroyed 19 | 1 10 8 Guns 10 | 1 1 8 AOE 9 | . 9 . Classes Destroyed 10 | 2 7 1 Worker 1 | 1 . . Builder 2 | . 1 1 Tunneler 1 | . 1 . Hauler 1 | . 1 . Recycler 1 | . 1 . Mechanic 1 | . 1 . Watcher 3 | . 2 1 Swarmer 9 | . 6 3 Grunt 9 | 1 4 4 Sentry 1 | . . 1 Best Kill Streak 8 | 1 8 6 Combat Bots Only 5 | 1 4 5 Max Kills in Single Turn 4 | 1 4 1 Gunslinging . | . . . Exploded 3 | . 3 . Melee . | . . . Uniques/NPCs Destroyed . | . . . Combat | -11 -10 -9 -------- Run | Yrd Mat Mat Hostile Shots Fired 174 | 5 9 160 Missed 45 | . 3 42 Damage Taken 1979 | 52 186 1741 Core 435 | . 32 403 Absorbed by Shields . | . . . Core Remaining (%) 93 | 100 87 . Volleys Fired 54 | 5 20 29 Largest 2 | 2 2 2 Hottest 96 | 60 80 96 Shots Fired 89 | 10 32 47 Gun 78 | 10 21 47 Cannon . | . . . Launcher 11 | . 11 . Special . | . . . Kinetic 16 | 5 . 11 Thermal 62 | 5 21 36 Explosive 11 | . 11 . Electromagnetic . | . . . Robot Hit Streak 13 | 6 4 13 Robot Miss Streak 3 | . 2 3 Penetration Max . | . . . Secondary Targets . | . . . Shots Hit Robots 49 | 6 13 30 Core Hits 42 | 3 24 15 Critical Kills . | . . . Critical Parts Destroyed . | . . . Critical Strikes . | . . . Melee Attacks . | . . . Impact . | . . . Slashing . | . . . Piercing . | . . . Sneak Attacks . | . . . Combat Hostiles . | . . . Follow-up Attacks . | . . . Damage Inflicted 1298 | 58 817 423 Guns 525 | 58 96 371 Cannons . | . . . Explosions 773 | . 721 52 Melee . | . . . Ramming . | . . . Kinetic 49 | 13 . 36 Thermal 476 | 45 96 335 Explosive 773 | . 721 52 Electromagnetic . | . . . Impact . | . . . Slashing . | . . . Piercing . | . . . Highest Corruption . | . . . Average Corruption . | . . . Corruption Purged . | . . . Corruption Blocked . | . . . Overload Shots . | . . . Overflow Damage 107 | . 73 34 Projectiles . | . . . Explosions 107 | . 73 34 Melee . | . . . Knockbacks . | . . . Impact . | . . . Kinetic . | . . . Secondary . | . . . Self-Inflicted Damage 241 | . 129 112 Shots 6 | . 5 1 Rammed . | . . . Targets Rammed . | . . . Kicked . | . . . Crushed . | . . . Highest Temperature 196 | 70 18 196 Average Temperature 49 | 35 8 62 Received Heat Transfer 768 | 30 18 720 Siege Activations . | . . . Robots Corrupted . | . . . Combat Hostiles . | . . . Parts Fried . | . . . Impact Corruptions . | . . . Robots Melted . | . . . Combat Hostiles . | . . . Parts Melted 3 | . . 3 Heat Transferred 1108 | 100 225 783 Parts Sabotaged . | . . . Parts Stolen . | . . . Parts Stripped . | . . . Power Chain Reactions . | . . . Alert | -11 -10 -9 ------- Run | Yrd Mat Mat Peak Influence 387 | 25 387 248 Initial 120 | . 16 120 Average 204 | 5 274 176 Maximum Alert Level 1 | . 1 1 Low Security (%) 54 | 100 24 78 Level 1 45 | . 75 21 Level 2 . | . . . Level 3 . | . . . Level 4 . | . . . Level 5 . | . . . High Security . | . . . Max Security . | . . . Squads Dispatched 3 | . 3 . Investigation 1 | . 1 . Extermination . | . . . Reinforcement 2 | . 2 . Assault . | . . . Garrison . | . . . Intercept . | . . . Searches Triggered . | . . . Construction Impeded . | . . . Haulers Reinforced . | . . . Active Scanning Responses . | . . . Cargo Convoy Interrupts . | . . . Stealth | -11 -10 -9 --------- Run | Yrd Mat Mat Distress Signals 2 | . 1 1 Communications Jammed . | . . . Distress Signals . | . . . Times Spotted 28 | 1 15 12 Peak Tracking Total 6 | 1 3 6 Tactical Retreats . | . . . Traps | -11 -10 -9 ------- Run | Yrd Mat Mat Traps Triggered . | . . . Indirectly . | . . . Trap Hack Attempts . | . . . Triggered . | . . . Disarmed . | . . . Reprogrammed . | . . . Reused . | . . . Traps Extracted . | . . . Installed . | . . . Triggered . | . . . Machines | -11 -10 -9 ---------- Run | Yrd Mat Mat Machines Disabled 4 | . 3 1 Max in Single Turn 2 | . 2 1 Machines Repaired . | . . . Machines Dismantled . | . . . Machines Sabotaged . | . . . Overloaded Fab Kills . | . . . Hacking | -11 -10 -9 --------- Run | Yrd Mat Mat Machines Accessed 5 | . 5 . Terminals 4 | . 4 . Fabricators . | . . . Repair Stations . | . . . Recycling Units 1 | . 1 . Scanalyzers . | . . . Garrison Access . | . . . Total Hacks 16 | . 16 . Successful 5 | . 5 . Failed 11 | . 11 . Catastrophic 1 | . 1 . Database Lockouts . | . . . Manual . | . . . Terminals 11 | . 11 . Fabricators . | . . . Repair Stations . | . . . Recycling Units 5 | . 5 . Scanalyzers . | . . . Garrison Access . | . . . Terminal Hacks 5 | . 5 . Record 3 | . 3 . Alert Level 1 | . 1 . Dispatch Records 1 | . 1 . Fabricator Hacks . | . . . Repair Station Hacks . | . . . Recycling Unit Hacks . | . . . Scanalyzer . | . . . Garrison Access Hacks . | . . . Unauthorized Hacks . | . . . Terminals . | . . . Fabricators . | . . . Repair Stations . | . . . Recycling Units . | . . . Scanalyzers . | . . . Garrison Access . | . . . Data Cores Recovered . | . . . Used . | . . . Hacking Detections 4 | . 4 . Full Trace Events 3 | . 3 . Feedback Events . | . . . Feedback Blocked . | . . . Robot Schematics Acquired . | . . . Robots Built . | . . . Authchips . | . . . Time . | . . . Total Robot Build Rating . | . . . Part Schematics Acquired . | . . . Parts Built . | . . . Authchips . | . . . Time . | . . . Total Part Build Rating . | . . . Parts Repaired . | . . . Time . | . . . Parts Recycled . | . . . Recycled Matter . | . . . Retrieved Matter . | . . . Retrieved Components . | . . . Parts Scanalyzed . | . . . Part Schematics Acquired . | . . . Parts Damaged . | . . . Bothacking | -11 -10 -9 ------------ Run | Yrd Mat Mat Used RIF Installer . | . . . Robots Hacked . | . . . Non-combat . | . . . Combat . | . . . Robot Hacks Applied . | . . . Relay Couplers Released . | . . . Fabnet Peak Effective % . | . . . Robots Rewired . | . . . Allies Hacked . | . . . Hacks Repelled . | . . . Allies | -11 -10 -9 -------- Run | Yrd Mat Mat Total Allies . | . . . Largest Group . | . . . Highest-Rated Group . | . . . Highest-Rated Ally . | . . . Total Orders . | . . . Ally Attacks . | . . . Total Damage . | . . . Kills . | . . . Allies Corrupted . | . . . Allies Melted . | . . . Intel | -11 -10 -9 ------- Run | Yrd Mat Mat Robot Analysis Total . | . . . Derelict Logs Recovered . | . . . Drone Launches . | . . . Drone Recoveries . | . . . Exploration | -11 -10 -9 ------------- Run | Yrd Mat Mat Turns Passed 883 | 111 441 331 Spaces Moved 501 | 74 329 98 Core 29 | 19 . 10 Treads 169 | . 135 34 Legs 54 | . . 54 Wheels 249 | 55 194 . Hover . | . . . Flight . | . . . Fastest Speed 50 | 50 80 120 Average Speed 131 | 72 112 237 Slowest Speed 500 | 80 160 500 Overloaded Moves . | . . . Propulsion Burnouts . | . . . Robots Hopped . | . . . Cave-ins Triggered . | . . . Exploration Rate (%) 24 | 6 55 12 Regions Visited 2 Branch Regions . Pre-discovered Areas . | . . . Known Exits Taken . | . . . Unknown Exits Taken 2 | 1 1 . Scrap Searched . | . . . Spaces Dug . | . . . Terrain Destroyed 135 | . 111 24 Melee . | . . . Projectile . | . . . AOE 135 | . 111 24 Terrain Rammed . | . . . Walls Destroyed . | . . . Machines Disabled . | . . . Actions | -11 -10 -9 --------- Run | Yrd Mat Mat Total 645 | 124 369 152 Wait 20 | 20 . . Move 499 | 73 328 98 Hop . | . . . Pick Up 29 | 12 9 8 Fast Attach 1 | . 1 . Attach 22 | 8 2 12 Detach 3 | 1 1 1 Swap 6 | 1 2 3 Drop 11 | 4 6 1 Fire 54 | 5 20 29 Melee . | . . . Ram . | . . . Kick . | . . . Crush . | . . . Escape Stasis . | . . . Rewire . | . . . Trap . | . . . Miscellaneous . | . . . Route ------- -11/Scrapyard -10/Materials (discovered 2 exits: [*Mat x2]) -9/Materials (discovered 1 exit: [*Min]) History --------- Turn | Location | Event 2 | -11/Scrapyard | Met Revision 17 81 | -11/Scrapyard | Discovered new exit (range 8) 112 | -11/Scrapyard | Entered Materials 187 | -10/Materials | Discovered new exit (range 15) 328 | -10/Materials | Build established: Mutant 529 | -10/Materials | Discovered new exit (range 10) 553 | -10/Materials | Entered another Materials area 553 | -9/Materials | Evolved 2 slots: Propulsion x1, Utility x1 553 | -9/Materials | Discovered new exit (range 9) 691 | -9/Materials | Lost 5 parts (1p1n1u2w) 847 | -9/Materials | Core integrity fell below 50% 867 | -9/Materials | Core integrity fell below 20% 884 | -9/Materials | Destroyed by Y-45 Defender with Beam Rifle Last Messages --------------- Critical hit (Burn: +37). Acquired Beam Rifle. R-06 Scavenger collects Welding Torch. Lgt. Ion Engine destroyed. U-05 Engineer builds a Door. G-47 Trooper destroyed. Lgt. Armor Plating destroyed. The unstable cave ceiling collapses. Critical hit (Burn: +37). U-05 Engineer builds a Wall. U-05 Engineer destroyed. [Achievement: Crack Shot] Aluminum Leg melted. Sml. Laser melted. G-34 Mercenary destroyed. Critical hit (Burn: +37). Sml. Laser destroyed. The unstable cave ceiling collapses. Beam Rifle destroyed. [Achievement: First Step to Greatness] Map ----- +----------------------------------------------------+ | ?????????????????????????????????????????????????? | | ?????????????????????????????????????????????????? | | ?????????????????????????????????????????????????? | | ?????????????????????????????????????????????????? | | ?????????????????????????????????????????????????? | | ?????????????????????????????????????????????????? | | ?????????????????????????????????????????????????? | | ?????????????????????????????????????????????????? | | ???? ????????????????????????????????????????????? | | ???? ????????????????????????????????????????????? | | #### #???????????????? ??????????????????????????? | | #??????????????? ??????????????????????????? | | +??????????????? ??????????????????????????? | | #??????????????? ?????????#????????????????? | | #???????????????/???????? #????????????????? | | #??????????????# ??????? #????????????????? | | ? #??????????????# #????? #????????????????? | | ? ???????????????# #????? #????????????????? | | ?? ???????????????# #????? #????????????????? | | ?? ???????????????# #????" #????????????????? | | ??? ???????????????# #????" ?????????????????? | | ??? #???????????????# #???? ??????? ????????? | | ???# #??????????????## #####+####### ???????? | | ???# #??????????????# g ???????? | | ???#=################|*= % g ???????? | | ???#%[ ! =%! @ ==% ???????? | | ####+#################+# % [%= #???????? | | *[ #????????# ############????????? | | * #????????# +???????????????????? | | #????????# #Y= #???????????????????? | | * #????????# =% #???????????????????? | | #????????# # * #???????????????????? | | = #????????## #???????????????????? | | #?????????# #???????????????????? | | ! #???????? # #???????????????????? | | #???????""" [ ## #???????????????????? | | #########??????#""" ?? ???????????????????? | | ## ####?????????"" ?? #??????????????????? | | ?####???????????? ?? +??????????????????? | | ?????????????????"" ?? # ?????????????????? | | ??????????????????" ?? #??????????????????? | | ??????????????????" ?? ##??????????????????? | | ???????????????????? ?? ????????????????????? | | ??????????????????????#??????????????????????????? | | ?????????????????????????????????????????????????? | | ?????????????????????????????????????????????????? | | ?????????????????????????????????????????????????? | | ##???????????????????????????????????????????????? | | !##??????????????????????????????????????????????? | | !#??????????????????????????????????????????????? | +----------------------------------------------------+ Best States ------------- Heat Dissipation 35 Energy Generation 12 Energy Capacity 265 Matter Stores 400 Matter Capacity 400 Sight Range 16 Terrain Scan Density 10 Armor Coverage 150 Evasion (%) 50 Recoil Reduction 1 Item Schematics ----------------- None Robot Schematics ------------------ None Fabricated ------------ Nothing Alien Tech Used ----------------- None Achievements -------------- Crack Shot First Step to Greatness Loot Pinata One Hack Too Far Uninvited Guest Challenges ------------ None Game ------ Seed CooledInsulationPropulsion Manual? 0 Play Time 00:52:26 Cumulative 0.8 hours Start 2024.08.03 @ 14:33:51 End 2024.08.03 @ 19:36:55 Sessions 1 Manual Loads 0 Difficulty Rogue Special Mode None Game No. 1 Rogue 1 Adventurer 0 Explorer 0 Win Type - Total 0 Types 0/0/0/0/0/0/0/0/0 Lore% 0 Gallery% 1 Achievement% 1 Wizard Run 0 Options --------- Layout 1 ASCII 0 Keyboard 0 Movement Mouse Keybinds 0 Fullscreen 2 Font 32/Tamsyn Map View 38x17 Zoom Use 99% Tactical HUD 0 Map Filters NONE Filters NONE Steam 1 RUN: d8e5ac77-c66f-48a7-a4f0-b4925f5cec2c